fUST/lending_fUST_20250627
["ID","MTS","AMOUNT","RATE_DAILY","PERIOD"]
[367982098,1750983041806,-791.64,0.0002098,2]
[367982100,1750983041815,-460.0,0.0002098,2]
[367982102,1750983041825,-460.0,0.0002098,2]
[367982104,1750983041834,-568.19,0.0002098,2]
[367982106,1750983041843,-460.0,0.0002098,2]
[367982108,1750983041853,-460.0,0.0002098,2]
[367982110,1750983041864,-814.63,0.0002098,2]
[367982112,1750983041874,-460.0,0.0002098,2]
[367982114,1750983041883,-460.0,0.0002098,2]
[367982116,1750983041892,-235.39785147,0.0002098,2]
[367982118,1750983041902,-460.0,0.0002098,2]
[367982120,1750983041911,-673.33,0.0002098,2]
[367982122,1750983041922,-460.0,0.0002098,2]
[367982124,1750983041931,-460.0,0.0002098,2]
[367982126,1750983041941,-460.0,0.0002098,2]
[367982128,1750983041950,-460.0,0.0002098,2]
[367982130,1750983041960,-460.0,0.0002098,2]
[367982132,1750983041969,-460.0,0.0002098,2]
[367982134,1750983041979,-460.0,0.0002098,2]
[367982136,1750983041988,-460.0,0.0002098,2]
[367982138,1750983041997,-931.11,0.0002098,2]
[367982140,1750983042007,-931.11,0.0002098,2]
[367982142,1750983042016,-931.11,0.0002098,2]
[367982144,1750983042025,-931.11,0.0002098,2]
[367982146,1750983042035,-931.11,0.0002098,2]
[367982148,1750983042045,-931.11,0.0002098,2]
[367982150,1750983042054,-460.0,0.0002098,2]
[367982152,1750983042063,-931.11,0.0002098,2]
[367982154,1750983042072,-931.11,0.0002098,2]
[367982156,1750983042082,-931.11,0.0002098,2]
[367982158,1750983042090,-466.04,0.0002098,2]
[367982160,1750983042100,-1094.4,0.0002098,2]
[367982161,1750983042109,-460.0,0.0002098,2]
[367982163,1750983042118,-460.0,0.0002098,2]
[367982165,1750983042127,-460.0,0.0002098,2]
[367982168,1750983042137,-460.0,0.0002098,2]
[367982169,1750983042146,-733.84,0.0002098,2]
[367982171,1750983042156,-460.0,0.0002098,2]
[367982173,1750983042165,-476.19241809,0.0002098,2]
[367982175,1750983042175,-245.065136,0.0002098,2]
[367982177,1750983042185,-460.19267576,0.0002098,2]
[367982179,1750983042194,-905.02,0.0002098,2]
[367982181,1750983042206,-460.0,0.0002098,2]
[367982183,1750983042215,-1392.28,0.0002098,2]
[367982185,1750983042224,-757.1,0.0002098,2]
[367982187,1750983042234,-460.0,0.0002098,2]
[367982204,1750983042383,-460.0,0.0002098,2]
[367982205,1750983042393,-898.55,0.0002098,2]
[367982206,1750983042403,-460.0,0.0002098,2]
[367982207,1750983042412,-460.0,0.0002098,2]
[367982208,1750983042422,-460.0,0.0002098,2]
[367982209,1750983042432,-460.0,0.0002098,2]
[367982210,1750983042441,-460.0,0.0002098,2]
[367982211,1750983042451,-460.0,0.0002098,2]
[367982212,1750983042460,-877.98,0.0002098,2]
[367982213,1750983042469,-529.06,0.0002098,2]
[367982214,1750983042479,-461.03255266,0.0002098,2]
[367982215,1750983042488,-460.0,0.0002098,2]
[367982216,1750983042497,-460.0,0.0002098,2]
[367982217,1750983042507,-844.21,0.0002098,2]
[367982218,1750983042516,-190.0,0.0002098,2]
[367982219,1750983042526,-669.77,0.0002098,2]
[367982220,1750983042535,-460.0,0.0002098,2]
[367982222,1750983042545,-460.0,0.0002098,2]
[367982223,1750983042554,-460.0,0.0002098,2]
[367982224,1750983042563,-460.0,0.0002098,2]
[367982225,1750983042572,-658.8,0.0002098,2]
[367982227,1750983042582,-168.95824352,0.0002098,2]
[367982229,1750983042591,-460.0,0.0002098,2]
[367982231,1750983042600,-228.99502971,0.0002098,2]
[367982233,1750983042610,-460.0,0.0002098,2]
[367982235,1750983042620,-460.0,0.0002098,2]
[367982237,1750983042629,-460.0,0.0002098,2]
[367982239,1750983042638,-460.0,0.0002098,2]
[367982241,1750983042648,-460.0,0.0002098,2]
[367982243,1750983042657,-1000.0,0.00020981,2]
[367982245,1750983042666,-460.0,0.00020981,2]
[367982247,1750983042676,-460.0,0.00020981,2]
[367982249,1750983042686,-460.0,0.00020981,2]
[367982251,1750983042695,-460.0,0.00020981,2]
[367982253,1750983042704,-460.0,0.00020981,2]
[367982255,1750983042714,-931.11,0.00020981,2]
[367982257,1750983042723,-931.11,0.00020981,2]
[367982259,1750983042733,-931.11,0.00020981,2]
[367982261,1750983042742,-460.0,0.00020981,2]
[367982263,1750983042751,-4838.66,0.00020981,2]
[367982265,1750983042760,-1395.73,0.00020981,2]
[367982267,1750983042770,-460.0,0.00020981,2]
[367982269,1750983042779,-460.0,0.00020982,2]
[367982271,1750983042789,-460.0,0.00020982,2]
[367982273,1750983042798,-460.0,0.00020982,2]
[367982275,1750983042808,-460.0,0.00020982,2]
[367982277,1750983042817,-460.0,0.00020982,2]
[367982279,1750983042826,-526.79,0.00020982,2]
[367982281,1750983042836,-151.0,0.00020982,2]
[367982283,1750983042845,-608.35,0.00020982,2]
[367982285,1750983042855,-151.0,0.00020982,2]
[367982289,1750983042864,-1206.24,0.00020982,2]
[367982290,1750983042873,-460.0,0.00020982,2]
[367982292,1750983042883,-151.0,0.00020982,2]
[367982294,1750983042892,-500.14,0.00020982,2]
[367982296,1750983042901,-151.0,0.00020982,2]
[367982298,1750983042910,-540.07,0.00020982,2]
[367982300,1750983042920,-151.0,0.00020982,2]
[367982302,1750983042930,-460.0,0.00020982,2]
[367982304,1750983042940,-441.54947,0.00020982,2]
[367982306,1750983042949,-441.54947,0.00020982,2]
[367982308,1750983042958,-602.49,0.00020982,2]
[367982310,1750983042968,-348.161406,0.00020982,2]
[367982312,1750983042979,-348.161406,0.00020982,2]
[367982314,1750983042988,-460.0,0.00020982,2]
[367982316,1750983042998,-758.21,0.00020982,2]
[367982318,1750983043007,-375.48756,0.00020982,2]
[367982320,1750983043017,-375.48756,0.00020982,2]
[367982322,1750983043027,-2813.731777,0.00020982,2]
[367982324,1750983043036,-1083.99,0.00020982,2]
[367982326,1750983043046,-2813.731777,0.00020982,2]
[367982328,1750983043055,-460.0,0.00020983,2]
[367982330,1750983043067,-460.0,0.00020983,2]
[367982332,1750983043076,-566.33596718,0.00020983,2]
[367982334,1750983043086,-460.0,0.00020983,2]
[367982336,1750983043096,-460.0,0.00020983,2]
[367982338,1750983043105,-460.0,0.00020983,2]
[367982340,1750983043115,-1843.29,0.00020983,2]
[367982342,1750983043125,-530.05,0.00020983,2]
[367982344,1750983043135,-931.11,0.00020983,2]
[367982346,1750983043144,-931.11,0.00020983,2]
[367982348,1750983043153,-931.11,0.00020983,2]
[367982350,1750983043163,-460.0,0.00020983,2]
[367982352,1750983043172,-2378.78,0.00020983,2]
[367982353,1750983043182,-509.19,0.00020983,2]
[367982355,1750983043192,-224.74916,0.00020983,2]
[367982357,1750983043201,-151.0,0.00020983,2]
[367982360,1750983043215,-1683.53,0.00020983,2]
[367982361,1750983043225,-460.0,0.00020983,2]
[367982363,1750983043235,-500.0,0.00020984,2]
[367982365,1750983043244,-460.0,0.00020984,2]
[367982368,1750983043255,-460.0,0.00020984,2]
[367982369,1750983043265,-460.0,0.00020984,2]
[367982372,1750983043276,-460.0,0.00020984,2]
[367982374,1750983043286,-453.79846349,0.00020984,2]
[367982377,1750983043296,-460.0,0.00020984,2]
[367982380,1750983043306,-460.0,0.00020984,2]
[367982383,1750983043316,-598.41627172,0.00020984,2]
[367982386,1750983043325,-460.0,0.00020984,2]
[367982389,1750983043335,-460.0,0.00020984,2]
[367982392,1750983043345,-460.0,0.00020984,2]
[367982395,1750983043356,-460.0,0.00020984,2]
[367982397,1750983043365,-432.94515881,0.00020984,2]
[367982399,1750983043376,-460.0,0.00020984,2]
[367982401,1750983043386,-390.0,0.00020984,2]
[367982403,1750983043395,-460.0,0.00020984,2]
[367982405,1750983043406,-460.0,0.00020984,2]
[367982407,1750983043417,-460.0,0.00020984,2]
[367982409,1750983043427,-460.0,0.00020984,2]
[367982411,1750983043436,-460.0,0.00020984,2]
[367982413,1750983043445,-460.0,0.00020984,2]
[367982415,1750983043455,-460.0,0.00020984,2]
[367982417,1750983043465,-460.0,0.00020984,2]
[367982419,1750983043474,-470.49,0.00020984,2]
[367982421,1750983043483,-666.12,0.00020984,2]
[367982423,1750983043493,-460.0,0.00020984,2]
[367982425,1750983043503,-460.0,0.00020984,2]
[367982427,1750983043513,-311.03300288,0.00020984,2]
[367982429,1750983043523,-500.0,0.00020984,2]
[367982431,1750983043532,-961.7,0.00020984,2]
[367982433,1750983043541,-782.6,0.00020984,2]
[367982435,1750983043551,-487.68,0.00020984,2]
[367982437,1750983043561,-460.0,0.00020984,2]
[367982439,1750983043571,-442.31813433,0.00020984,2]
[367982440,1750983043580,-460.0,0.00020984,2]
[367982442,1750983043590,-463.59054029,0.00020984,2]
[367982444,1750983043600,-460.0,0.00020984,2]
[367982446,1750983043610,-707.97,0.00020984,2]
[367982448,1750983043620,-460.0,0.00020984,2]
[367982450,1750983043629,-460.0,0.00020984,2]
[367982453,1750983043639,-151.0,0.00020984,2]
[367982454,1750983043649,-460.0,0.00020984,2]
[367982457,1750983043659,-460.0,0.00020984,2]
[367982459,1750983043670,-151.0,0.00020984,2]
[367982460,1750983043680,-151.0,0.00020984,2]
[367982462,1750983043689,-151.0,0.00020984,2]
[367982464,1750983043699,-460.0,0.00020984,2]
[367982466,1750983043709,-501.14,0.00020984,2]
[367982468,1750983043718,-908.8,0.00020984,2]
[367982470,1750983043728,-460.0,0.00020984,2]
[367982472,1750983043738,-812.8,0.00020984,2]
[367982474,1750983043747,-651.35,0.00020984,2]
[367982476,1750983043756,-151.0,0.00020984,2]
[367982478,1750983043766,-1029.33,0.00020984,2]
[367982481,1750983043776,-460.0,0.00020984,2]
[367982482,1750983043786,-864.02,0.00020984,2]
[367982485,1750983043796,-151.0,0.00020984,2]
[367982487,1750983043805,-460.0,0.00020984,2]
[367982488,1750983043815,-460.0,0.00020984,2]
[367982490,1750983043824,-460.0,0.00020984,2]
[367982492,1750983043834,-151.0,0.00020984,2]
[367982494,1750983043843,-151.0,0.00020984,2]
[367982496,1750983043852,-460.0,0.00020984,2]
[367982498,1750983043861,-551.86,0.00020984,2]
[367982500,1750983043871,-460.0,0.00020984,2]
[367982502,1750983043880,-151.0,0.00020984,2]
[367982504,1750983043890,-463.88588244,0.00020984,2]
[367982506,1750983043899,-460.0,0.00020984,2]
[367982508,1750983043909,-661.62,0.00020984,2]
[367982510,1750983043919,-460.0,0.00020984,2]
[367982512,1750983043929,-1147.3,0.00020984,2]
[367982514,1750983043939,-460.0,0.00020984,2]
[367982516,1750983043948,-460.0,0.00020984,2]
[367982518,1750983043958,-460.0,0.00020984,2]
[367982520,1750983043968,-460.0,0.00020984,2]
[367982522,1750983043977,-686.29,0.00020984,2]
[367982524,1750983043987,-151.0,0.00020984,2]
[367982526,1750983043996,-500.0,0.00020984,2]
[367982528,1750983044005,-500.0,0.00020984,2]
[367982530,1750983044015,-500.0,0.00020984,2]
[367982532,1750983044025,-460.0,0.00020984,2]
[367982534,1750983044035,-570.9949472,0.00020984,2]
[367982536,1750983044045,-460.0,0.00020984,2]
[367982538,1750983044054,-151.0,0.00020984,2]
[367982540,1750983044063,-1649.08,0.00020984,2]
[367982542,1750983044073,-151.0,0.00020984,2]
[367982544,1750983044083,-460.0,0.00020984,2]
[367982546,1750983044093,-460.0,0.00020984,2]
[367982548,1750983044103,-460.0,0.00020984,2]
[367982550,1750983044113,-460.0,0.00020984,2]
[367982552,1750983044122,-1112.76,0.00020984,2]
[367982554,1750983044132,-460.0,0.00020984,2]
[367982556,1750983044142,-892.62,0.00020984,2]
[367982558,1750983044152,-492.67,0.00020984,2]
[367982560,1750983044161,-460.0,0.00020984,2]
[367982562,1750983044174,-460.0,0.00020984,2]
[367982564,1750983044184,-582.78,0.00020984,2]
[367982566,1750983044193,-464.73,0.00020984,2]
[367982567,1750983044203,-460.0,0.00020984,2]
[367982569,1750983044214,-460.0,0.00020984,2]
[367982571,1750983044223,-151.0,0.00020984,2]
[367982573,1750983044233,-460.0,0.00020984,2]
[367982575,1750983044242,-4056.0,0.00021,2]
[367982577,1750983044252,-6931.33220104,0.00021,2]
[367982579,1750983044261,-159.2154015,0.00021,2]
[367982581,1750983044271,-575.0264769,0.00021,2]
[367982583,1750983044280,-159.2154015,0.00021,2]
[367982585,1750983044289,-575.0264769,0.00021,2]
[367982587,1750983044299,-159.2154015,0.00021,2]
[367982589,1750983044308,-575.0264769,0.00021,2]
[367982591,1750983044318,-496.46219518,0.00021008,2]
[367982593,1750983044327,-3198.70300901,0.00021072,4]
[367982595,1750983044337,-602.69133795,0.0002112,2]
[367982597,1750983044346,-496.46219518,0.00021148,2]
[367982599,1750983044356,-406.0,0.00021148,2]
[367982601,1750983044365,-151.0,0.00021198,2]
[367982603,1750983044375,-151.0,0.00021198,2]
[367982605,1750983044385,-151.0,0.00021198,2]
[367982607,1750983044395,-151.0,0.00021198,2]
[367982609,1750983044404,-151.0,0.00021198,2]
[367982611,1750983044413,-151.0,0.00021198,2]
[367982613,1750983044424,-151.393314,0.00021198,2]
[367982615,1750983044433,-151.0,0.00021198,2]
[367982617,1750983044443,-151.0,0.00021198,2]
[367982619,1750983044452,-151.0,0.000212,3]
[367982621,1750983044462,-460.0,0.00021239,2]
[367982623,1750983044470,-528.7,0.00021239,2]
[367982625,1750983044480,-460.0,0.00021239,2]
[367982627,1750983044489,-460.0,0.00021239,2]
[367982629,1750983044498,-460.0,0.00021241,2]
[367982631,1750983044508,-460.0,0.00021241,2]
[367982633,1750983044518,-404.88186531,0.00021241,2]
[367982635,1750983044527,-460.0,0.00021241,2]
[367982637,1750983044536,-460.0,0.00021241,2]
[367982639,1750983044546,-460.0,0.00021241,2]
[367982641,1750983044556,-606.15,0.00021241,2]
[367982643,1750983044565,-460.0,0.00021241,2]
[367982645,1750983044575,-793.1,0.00021241,2]
[367982647,1750983044584,-460.0,0.00021241,2]
[367982649,1750983044593,-3297.38,0.00021241,2]
[367982651,1750983044603,-460.0,0.00021241,2]
[367982653,1750983044612,-502.82324713,0.00021241,2]
[367982655,1750983044621,-460.0,0.00021241,2]
[367982657,1750983044631,-2984.78,0.00021241,2]
[367982659,1750983044641,-460.0,0.00021241,2]
[367982661,1750983044651,-460.0,0.00021242,2]
[367982663,1750983044661,-460.0,0.00021242,2]
[367982665,1750983044671,-3464.82,0.00021242,2]
[367982666,1750983044680,-460.0,0.00021242,2]
[367982668,1750983044695,-460.0,0.00021242,2]
[367982670,1750983044705,-859.89,0.00021242,2]
[367982672,1750983044715,-460.0,0.00021242,2]
[367982674,1750983044725,-748.76,0.00021242,2]
[367982676,1750983044734,-502.72,0.00021242,2]
[367982678,1750983044743,-460.0,0.00021242,2]
[367982680,1750983044753,-2536.83,0.00021242,2]
[367982682,1750983044762,-2045.1,0.00021242,2]
[367982684,1750983044772,-1358.9,0.00021242,2]
[367982686,1750983044781,-3186.09,0.00021242,2]
[367982688,1750983044791,-648.25,0.00021242,2]
[367982690,1750983044800,-460.0,0.00021242,2]
[367982692,1750983044809,-2005.53,0.00021242,2]
[367982694,1750983044819,-460.0,0.00021242,2]
[367982696,1750983044828,-460.0,0.00021242,2]
[367982698,1750983044838,-854.46,0.00021242,2]
[367982700,1750983044848,-756.31,0.00021242,2]
[367982702,1750983044857,-665.59,0.00021242,2]
[367982704,1750983044866,-551.26,0.00021242,2]
[367982706,1750983044876,-2278.35,0.00021242,2]
[367982708,1750983044886,-460.0,0.00021244,2]
[367982710,1750983044895,-494.52,0.00021244,2]
[367982712,1750983044905,-263.58212928,0.00021244,2]
[367982714,1750983044915,-500.0,0.00021244,2]
[367982716,1750983044926,-460.0,0.00021244,2]
[367982718,1750983044935,-460.0,0.00021244,2]
[367982720,1750983044946,-460.0,0.00021244,2]
[367982722,1750983044956,-460.0,0.00021244,2]
[367982723,1750983044965,-460.0,0.00021244,2]
[367982724,1750983044975,-460.0,0.00021244,2]
[367982725,1750983044984,-154.203399,0.00021244,2]
[367982726,1750983044993,-3198.70300901,0.00021245,4]
[367982727,1750983045002,-378.69260427,0.00021245,2]
[367982728,1750983045012,-460.0,0.00021245,2]
[367982729,1750983045021,-460.0,0.00021253,2]
[367982731,1750983045030,-430.0,0.00021253,2]
[367982733,1750983045040,-500.0,0.00021253,2]
[367982735,1750983045049,-460.0,0.00021253,2]
[367982737,1750983045059,-540.0,0.00021253,2]
[367982739,1750983045068,-460.0,0.00021253,2]
[367982741,1750983045078,-460.0,0.00021253,2]
[367982743,1750983045087,-460.0,0.00021253,2]
[367982745,1750983045097,-460.0,0.00021253,2]
[367982747,1750983045106,-460.0,0.00021253,2]
[367982749,1750983045116,-441.02612053,0.00021253,2]
[367982751,1750983045125,-460.0,0.00021253,2]
[367982753,1750983045134,-460.0,0.00021253,2]
[367982755,1750983045144,-633.66,0.00021253,2]
[367982757,1750983045153,-410.0,0.00021253,2]
[367982759,1750983045163,-460.0,0.00021253,2]
[367982761,1750983045173,-495.66,0.00021253,2]
[367982763,1750983045183,-460.0,0.00021253,2]
[367982765,1750983045193,-460.0,0.00021253,2]
[367982767,1750983045203,-204.44,0.00021253,2]
[367982769,1750983045216,-460.0,0.00021253,2]
[367982771,1750983045225,-460.0,0.00021253,2]
[367982773,1750983045235,-460.0,0.00021253,2]
[367982775,1750983045245,-460.0,0.00021253,2]
[367982777,1750983045255,-460.0,0.00021253,2]
[367982792,1750983045264,-155.16035245,0.00021253,2]
[367982796,1750983045400,-503.48574085,0.00021253,2]
[367982798,1750983045409,-380.88661246,0.00021253,2]
[367982801,1750983045419,-460.0,0.00021253,2]
[367982804,1750983045428,-460.0,0.00021253,2]
[367982807,1750983045438,-460.0,0.00021253,2]
[367982809,1750983045447,-460.0,0.00021253,2]
[367982812,1750983045456,-500.0,0.00021253,2]
[367982814,1750983045465,-460.0,0.00021253,2]
[367982816,1750983045475,-460.0,0.00021253,2]
[367982818,1750983045485,-460.0,0.00021253,2]
[367982820,1750983045494,-460.0,0.00021253,2]
[367982822,1750983045503,-460.0,0.00021253,2]
[367982824,1750983045513,-460.0,0.00021253,2]
[367982826,1750983045523,-460.0,0.00021253,2]
[367982828,1750983045532,-460.0,0.00021253,2]
[367982829,1750983045541,-460.0,0.00021253,2]
[367982832,1750983045551,-477.55,0.00021253,2]
[367982833,1750983045560,-183.29107753,0.00021253,2]
[367982835,1750983045570,-460.0,0.00021253,2]
[367982838,1750983045579,-460.0,0.00021253,2]
[367982839,1750983045589,-460.0,0.00021253,2]
[367982842,1750983045599,-460.0,0.00021253,2]
[367982843,1750983045609,-460.0,0.00021253,2]
[367982846,1750983045619,-460.0,0.00021253,2]
[367982848,1750983045628,-460.0,0.00021253,2]
[367982850,1750983045637,-460.0,0.00021253,2]
[367982852,1750983045647,-460.0,0.00021253,2]
[367982854,1750983045656,-460.0,0.00021253,2]
[367982855,1750983045665,-460.0,0.00021253,2]
[367982858,1750983045675,-460.0,0.00021253,2]
[367982860,1750983045685,-460.0,0.00021253,2]
[367982862,1750983045696,-460.0,0.00021253,2]
[367982864,1750983045705,-460.0,0.00021253,2]
[367982866,1750983045714,-203.26429654,0.00021253,2]
[367982868,1750983045723,-460.0,0.00021253,2]
[367982870,1750983045733,-460.0,0.00021253,2]
[367982872,1750983045742,-460.0,0.00021253,2]
[367982874,1750983045751,-460.0,0.00021253,2]
[367982876,1750983045762,-151.0,0.00021253,2]
[367982878,1750983045771,-466.17,0.00021253,2]
[367982880,1750983045781,-460.0,0.00021253,2]
[367982882,1750983045791,-683.9,0.00021253,2]
[367982884,1750983045800,-460.0,0.00021253,2]
[367982886,1750983045810,-460.0,0.00021253,2]
[367982888,1750983045819,-772.61,0.00021253,2]
[367982890,1750983045829,-174.797159,0.00021253,2]
[367982892,1750983045838,-542.71,0.00021253,2]
[367982894,1750983045847,-460.0,0.00021253,2]
[367982896,1750983045857,-460.0,0.00021253,2]
[367982898,1750983045871,-932.89,0.00021253,2]
[367982900,1750983045881,-552.52605129,0.00021253,2]
[367982902,1750983045891,-701.12,0.00021253,2]
[367982904,1750983045900,-460.0,0.00021253,2]
[367982905,1750983045909,-460.0,0.00021253,2]
[367982907,1750983045919,-460.0,0.00021253,2]
[367982910,1750983045929,-791.64,0.00021253,2]
[367982911,1750983045938,-460.0,0.00021253,2]
[367982913,1750983045948,-460.0,0.00021253,2]
[367982915,1750983045958,-568.19,0.00021253,2]
[367982917,1750983045967,-460.0,0.00021253,2]
[367982920,1750983045977,-814.63,0.00021253,2]
[367982921,1750983045987,-460.0,0.00021253,2]
[367982924,1750983045996,-151.0,0.00021253,2]
[367982925,1750983046006,-500.0,0.00021253,2]
[367982927,1750983046015,-460.0,0.00021253,2]
[367982929,1750983046024,-673.33,0.00021253,2]
[367982931,1750983046034,-151.0,0.00021253,2]
[367982933,1750983046043,-460.0,0.00021253,2]
[367982935,1750983046053,-460.0,0.00021253,2]
[367982937,1750983046062,-460.0,0.00021253,2]
[367982939,1750983046073,-460.0,0.00021253,2]
[367982942,1750983046082,-478.7304356,0.00021253,2]
[367982944,1750983046092,-460.0,0.00021253,2]
[367982945,1750983046102,-466.04,0.00021253,2]
[367982947,1750983046112,-1094.4,0.00021253,2]
[367982949,1750983046121,-251.679561,0.00021253,2]
[367982952,1750983046131,-151.0,0.00021253,2]
[367982954,1750983046140,-460.0,0.00021253,2]
[367982956,1750983046149,-441.54947,0.00021253,2]
[367982957,1750983046159,-733.84,0.00021253,2]
[367982960,1750983046169,-441.54947,0.00021253,2]
[367982962,1750983046178,-905.02,0.00021253,2]
[367982963,1750983046187,-1392.28,0.00021253,2]
[367982966,1750983046197,-757.1,0.00021253,2]
[367982967,1750983046210,-460.0,0.00021253,2]
[367982970,1750983046219,-348.161406,0.00021253,2]
[367982972,1750983046229,-898.55,0.00021253,2]
[367982973,1750983046241,-348.161406,0.00021253,2]
[367982976,1750983046251,-460.0,0.00021253,2]
[367982978,1750983046260,-460.0,0.00021253,2]
[367982980,1750983046270,-460.0,0.00021253,2]
[367982981,1750983046279,-460.0,0.00021253,2]
[367982984,1750983046290,-460.0,0.00021253,2]
[367982986,1750983046300,-460.0,0.00021253,2]
[367982988,1750983046309,-529.06,0.00021253,2]
[367982990,1750983046318,-877.98,0.00021253,2]
[367982992,1750983046327,-460.0,0.00021253,2]
[367982994,1750983046337,-844.21,0.00021253,2]
[367982996,1750983046346,-375.48756,0.00021253,2]
[367982998,1750983046355,-669.77,0.00021253,2]
[367983000,1750983046364,-375.48756,0.00021253,2]
[367983002,1750983046374,-460.0,0.00021253,2]
[367983004,1750983046384,-460.0,0.00021253,2]
[367983006,1750983046394,-658.8,0.00021253,2]
[367983008,1750983046403,-460.0,0.00021253,2]
[367983010,1750983046413,-163.64628864,0.00021253,2]
[367983012,1750983046423,-460.0,0.00021253,2]
[367983014,1750983046433,-2813.731777,0.00021253,2]
[367983016,1750983046442,-2813.731777,0.00021253,2]
[367983018,1750983046452,-151.0,0.00021253,2]
[367983020,1750983046462,-431.58983597,0.00021253,2]
[367983022,1750983046471,-931.11,0.00021254,2]
[367983024,1750983046480,-460.0,0.00021255,2]
[367983026,1750983046490,-460.0,0.00021255,2]
[367983028,1750983046500,-460.0,0.00021255,2]
[367983030,1750983046509,-450.0,0.00021255,2]
[367983032,1750983046518,-505.97096708,0.00021255,2]
[367983034,1750983046527,-460.0,0.00021255,2]
[367983036,1750983046537,-4838.66,0.00021255,2]
[367983038,1750983046546,-1395.73,0.00021255,2]
[367983040,1750983046556,-460.0,0.00021255,2]
[367983042,1750983046566,-460.0,0.00021256,2]
[367983044,1750983046575,-460.0,0.00021256,2]
[367983046,1750983046585,-460.0,0.00021256,2]
[367983048,1750983046594,-460.0,0.00021256,2]
[367983050,1750983046603,-526.79,0.00021256,2]
[367983052,1750983046613,-151.0,0.00021256,2]
[367983054,1750983046622,-161.413419,0.00021256,2]
[367983056,1750983046631,-161.413419,0.00021256,2]
[367983058,1750983046641,-151.0,0.00021256,2]
[367983060,1750983046652,-189.977727,0.00021256,2]
[367983062,1750983046662,-151.0,0.00021256,2]
[367983064,1750983046672,-608.35,0.00021256,2]
[367983066,1750983046683,-1206.24,0.00021256,2]
[367983068,1750983046692,-460.0,0.00021256,2]
[367983070,1750983046702,-500.14,0.00021256,2]
[367983072,1750983046712,-540.07,0.00021256,2]
[367983074,1750983046721,-931.11,0.00021256,2]
[367983076,1750983046731,-460.0,0.00021256,2]
[367983078,1750983046742,-602.49,0.00021256,2]
[367983080,1750983046751,-460.0,0.00021256,2]
[367983082,1750983046761,-758.21,0.00021256,2]
[367983084,1750983046770,-1083.99,0.00021256,2]
[367983086,1750983046780,-460.0,0.00021257,2]
[367983088,1750983046789,-205.12440464,0.00021257,2]
[367983090,1750983046800,-471.13310678,0.00021257,2]
[367983092,1750983046810,-1843.29,0.00021257,2]
[367983094,1750983046819,-530.05,0.00021257,2]
[367983096,1750983046829,-931.11,0.00021257,2]
[367983098,1750983046838,-931.11,0.00021257,2]
[367983100,1750983046851,-460.0,0.00021257,2]
[367983102,1750983046861,-2378.78,0.00021257,2]
[367983104,1750983046870,-509.19,0.00021257,2]
[367983106,1750983046880,-1683.53,0.00021257,2]
[367983108,1750983046889,-460.0,0.00021257,2]